bitfinex/quotes_ETHUSD_20241018
["timestamp","ask_amount","ask_price","bid_price","bid_amount"]
[1729270857239,1.57860079,2652.8,2650.5,0.7866]
[1729270857413,0.39350224,2652.7,2650.5,0.7866]
[1729270858611,0.39350224,2652.7,2650.6,0.3768]
[1729270858922,0.39350224,2652.7,2650.7,0.804]
[1729270859832,3.6511858,2652.5,2650.7,0.804]
[1729270859998,0.36511858,2652.4,2650.7,0.804]
[1729270860598,7.4217558,2652.2,2650.7,0.804]
[1729270860798,7.4221358,2651.9,2650.7,0.804]
[1729270861002,3.6511858,2651.7,2650.7,0.804]
[1729270861326,7.4223658,2651.7,2650.7,0.804]
[1729270861635,3.6511858,2651.5,2650.7,0.804]
[1729270861836,3.6511858,2651.2,2650.7,0.804]
[1729270862400,1.57860079,2651.4,2650.7,0.804]
[1729270862401,3.6511858,2651.4,2650.7,0.804]
[1729270863133,5.22978659,2651.4,2650.7,0.804]
[1729270863323,3.6511858,2651.4,2650.7,0.804]
[1729270863537,0.73705082,2651.3,2650.7,0.804]
[1729270863846,9.00109659,2651.6,2650.7,0.804]
[1729270864146,5.35006079,2651.5,2650.7,0.804]
[1729270864431,1.57860079,2651.5,2650.7,0.804]
[1729270864640,9.3839595,2651.6,2650.7,0.804]
[1729270864641,1.09625603,2651.4,2650.7,0.804]
[1729270864843,3.77117,2651.7,2650.7,0.804]
[1729270864996,3.6511858,2651.5,2650.7,0.804]
[1729270865657,5.34985079,2651.7,2650.7,0.804]
[1729270865658,5.22978659,2651.7,2650.7,0.804]
[1729270865844,3.6511858,2651.7,2650.7,0.804]
[1729270866139,0.90008166,2651.6,2650.7,0.804]
[1729270867544,4.67139166,2651.6,2650.7,0.804]
[1729270867751,7.4227758,2651.4,2650.7,0.804]
[1729270868045,3.6511858,2651.4,2650.7,0.804]
[1729270868208,7.4227858,2651.4,2650.7,0.804]
[1729270868407,0.78164592,2651.3,2650.7,0.804]
[1729270870918,4.55339592,2651.3,2650.7,0.804]
[1729270871119,3.77201,2651.2,2650.7,0.804]
[1729270871318,7.4232058,2651.1,2650.2,0.763]
[1729270871524,3.77217,2651.0,2650.2,0.763]
[1729270871716,1.06276006,2650.9,2650.2,0.763]
[1729270872271,4.83514006,2650.9,2650.2,0.763]
[1729270872432,3.77244,2650.8,2650.2,0.763]
[1729270872857,7.4238958,2650.7,2650.1,0.0094336]
[1729270873026,0.78164592,2650.6,2650.1,0.0094336]
[1729270873369,3.77302,2650.4,2650.1,0.0094336]
[1729270873534,3.6511858,2650.5,2650.1,0.0094336]
[1729270873535,7.4240658,2650.5,2650.1,0.0094336]
[1729270874363,3.77301,2650.4,2650.1,0.0094336]
[1729270874630,8.99543254,2650.5,2650.1,0.0094336]
[1729270874830,5.04984725,2650.4,2650.1,0.0094336]
[1729270875069,1.27682725,2650.4,2650.1,0.0094336]
[1729270875272,5.04984725,2650.4,2650.1,0.0094336]
[1729270876162,3.7733,2650.2,2648.2,19.66]
[1729270876327,0.56757873,2650.1,2649.4,0.797]
[1729270877953,0.39389332,2650.0,2649.4,0.797]
[1729270880882,3.77301,2650.4,2649.4,0.797]
[1729270881065,0.39386275,2650.1,2649.4,0.797]
[1729270881871,3.6511858,2650.0,2649.4,0.797]
[1729270882179,7.4247658,2650.0,2649.4,0.797]
[1729270882339,3.77375,2649.9,2649.4,0.797]
[1729270882541,3.6511858,2649.6,2648.3,0.7822]
[1729270882849,3.77388,2649.8,2648.4,0.7822]
[1729270882850,3.6511858,2649.8,2648.4,0.7822]
[1729270883168,0.59064166,2649.6,2648.4,0.7822]
[1729270883560,4.24182746,2649.6,2648.4,0.7822]
[1729270883738,8.01597746,2649.6,2648.4,0.7822]
[1729270883935,0.80159775,2649.5,2648.4,0.7822]
[1729270884331,0.59064166,2649.6,2648.4,0.7822]
[1729270887163,0.39386275,2650.1,2648.4,0.7822]
[1729270887380,0.59057989,2650.0,2648.4,0.7822]
[1729270888684,4.55757989,2650.0,2648.4,0.7822]
[1729270889196,0.59057989,2650.0,2648.4,0.7822]
[1729270889355,1.05414273,2650.0,2648.4,0.7822]
[1729270889555,0.39386275,2650.1,2648.4,0.7822]
[1729270890074,0.39386275,2650.1,2648.5,0.7758]
[1729270893705,0.39386275,2650.1,2648.7,0.7508]
[1729270893860,11.1960558,2650.9,2648.7,0.7508]
[1729270894062,0.39380968,2650.6,2648.9,0.7508]
[1729270894279,0.39380968,2650.6,2649.1,0.7508]
[1729270895602,8.13363968,2650.6,2649.1,0.7508]
[1729270896195,0.39380968,2650.6,2649.1,0.7508]
[1729270896385,3.77287,2650.5,2649.1,0.7508]
[1729270896975,4.16656968,2650.6,2649.1,0.7508]
[1729270897177,0.85297051,2650.5,2649.1,0.7508]
[1729270900400,0.39380968,2650.6,2649.1,0.7508]
[1729270903711,0.39380968,2650.6,2649.2,0.8261]
[1729270903712,1.96517642,2650.6,2649.2,0.8261]
[1729270904207,5.73797642,2650.6,2649.2,0.8261]
[1729270904410,1.57136674,2650.5,2649.2,0.8261]
[1729270904620,0.39286744,2650.4,2649.2,0.8261]
[1729270905490,1.57136674,2650.3,2649.2,0.8261]
[1729270905792,1.96423418,2650.4,2649.2,0.8261]
[1729270906601,1.57136674,2650.3,2649.2,0.8261]
[1729270907176,1.57136674,2650.2,2649.2,0.8261]
[1729270907376,0.35410863,2650.1,2649.2,0.8261]
[1729270907612,1.92547537,2650.1,2649.2,0.8261]
[1729270908003,1.57136674,2650.0,2649.2,0.8261]
[1729270908194,1.57136674,2649.9,2649.2,0.8261]
[1729270908811,1.57136674,2649.8,2649.2,0.8261]
[1729270909014,1.92547537,2649.7,2649.2,0.8261]
[1729270909226,1.57136674,2649.6,2649.2,0.8261]
[1729270909379,1.57136674,2649.5,2649.2,0.8261]
[1729270909609,1.57136674,2649.4,2649.2,0.8261]
[1729270910606,1.96971952,2649.5,2649.2,0.8261]
[1729270910607,1.57136674,2649.5,2649.2,0.8261]
[1729270910930,1.57136674,2649.4,2649.2,0.8261]
[1729270911635,0.35424195,2649.3,2649.2,0.8261]
[1729270911807,1.57136674,2649.3,2649.2,0.8261]
[1729270912129,1.57136674,2649.4,2649.2,0.8261]
[1729270912447,1.57136674,2649.3,2649.2,0.8261]
[1729270913447,1.97105276,2649.4,2649.2,0.8261]
[1729270913608,1.77474141,2649.3,2649.2,0.8261]
[1729270914648,0.19710528,2649.3,2649.2,0.8261]
[1729270915017,2.16815804,2649.3,2648.9,0.8132]
[1729270915229,1.57789619,2649.1,2648.9,0.8132]
[1729270915809,1.57789619,2649.0,2648.9,0.8132]
[1729270917418,1.97293468,2649.0,2648.9,0.8132]
[1729270917649,0.19729347,2649.0,2648.9,0.8132]
[1729270918060,2.17022815,2649.0,2648.9,0.8132]
[1729270918220,0.19729347,2649.0,2648.9,0.8132]
[1729270918415,2.17022815,2649.0,2648.9,0.8132]
[1729270919126,1.77576401,2649.0,2648.9,0.8132]
[1729270920022,0.19729347,2649.0,2648.9,0.8132]
[1729270920421,1.77576401,2649.0,2648.9,0.8132]
[1729270920720,1.57847054,2649.2,2648.9,0.8132]
[1729270921357,1.57847054,2649.1,2648.9,0.8132]
[1729270921559,1.57847054,2649.0,2648.9,0.8132]
[1729270921731,1.57847054,2649.1,2648.9,0.8132]
[1729270921929,0.19728259,2649.0,2648.9,0.8132]
[1729270922473,1.77575313,2649.0,2648.9,0.8132]
[1729270922635,0.19728259,2649.0,2648.2,0.8099]
[1729270922962,1.57800593,2648.9,2648.2,0.8099]
[1729270923867,0.37478356,2648.8,2648.2,0.8099]
[1729270924833,1.57800593,2648.9,2648.2,0.8099]
[1729270925451,1.77528852,2649.0,2648.2,0.8099]
[1729270925761,1.57800593,2649.0,2648.2,0.8099]
[1729270925969,1.57800593,2649.1,2648.2,0.8099]
[1729270926427,1.57800593,2649.2,2648.2,0.8099]
[1729270932138,1.57800593,2649.1,2648.2,0.8099]
[1729270933572,1.57800593,2649.1,2648.3,0.3768]
[1729270933765,0.35490856,2649.0,2647.9,0.8007]
[1729270939486,1.93291449,2649.0,2647.9,0.8007]
[1729270939863,1.57800593,2649.0,2647.9,0.8007]
[1729270940061,1.57800593,2648.9,2647.9,0.8007]
[1729270941510,1.57800593,2648.7,2647.9,0.8007]
[1729270941965,1.57800593,2648.8,2647.9,0.8007]
[1729270942166,0.35490856,2648.7,2647.9,0.8007]
[1729270942763,1.57800593,2648.8,2647.9,0.8007]
[1729270942963,1.57800593,2649.0,2648.0,0.79]
[1729270944920,1.57800593,2648.9,2648.0,0.79]
[1729270945405,1.57800593,2648.7,2648.0,0.79]
[1729270945577,0.35490856,2648.6,2648.0,0.79]
[1729270945778,1.57800593,2648.7,2648.0,0.79]
[1729270946106,1.57800593,2648.8,2648.0,0.79]
[1729270946409,1.57800593,2648.7,2648.0,0.79]
[1729270947123,1.57800593,2648.9,2648.0,0.79]
[1729270947322,1.97241549,2648.9,2648.0,0.79]
[1729270948391,1.57800593,2648.8,2648.0,0.79]
[1729270948918,1.97241549,2648.9,2648.0,0.79]
[1729270950298,1.57800593,2648.9,2648.0,0.79]
[1729270951108,1.57800593,2649.0,2648.0,0.79]
[1729270951515,1.57800593,2648.9,2648.0,0.79]
[1729270951685,1.93324947,2648.9,2648.0,0.79]
[1729270952999,1.57800593,2648.7,2648.0,0.79]
[1729270953529,1.57800593,2648.3,2648.0,0.79]
[1729270954185,1.57800593,2648.2,2648.0,0.79]
[1729270954388,1.57800593,2648.1,2648.0,0.79]
[1729270955228,1.57800593,2648.2,2648.0,0.79]
[1729270955432,0.35524354,2648.1,2648.0,0.79]
[1729270955725,2.33356791,2648.1,2648.0,0.79]
[1729270955927,1.97832437,2648.1,2648.0,0.79]
[1729270956089,2.37398925,2648.3,2648.0,0.79]
[1729270956290,1.97842614,2648.1,2647.4,7.29]
[1729270956496,1.58225578,2647.8,2647.0,0.7765]
[1729270956737,1.58225578,2647.6,2647.0,0.7765]
[1729270957335,1.58225578,2647.8,2647.0,0.7765]
[1729270958439,1.58225578,2647.9,2647.0,0.7765]
[1729270959215,1.58225578,2648.0,2647.0,0.7765]
[1729270959408,1.58225578,2648.1,2647.0,0.7765]
[1729270959697,2.76965412,2648.7,2647.0,0.7765]
[1729270959698,1.58225578,2648.3,2647.0,0.7765]
[1729270961637,1.58225578,2648.4,2647.0,0.7765]
[1729270961839,1.58225578,2648.4,2647.1,0.8181]
[1729270961994,1.58225578,2648.5,2647.2,0.8181]
[1729270962194,1.93807527,2648.5,2647.2,0.8181]
[1729270963197,1.58225578,2648.5,2647.2,0.8181]
[1729270963831,1.58225578,2648.5,2646.9,0.35961039]
[1729270963832,1.58225578,2648.5,2647.3,0.7611]
[1729270964624,2.37112696,2648.9,2647.3,0.7611]
[1729270964625,1.58225578,2648.8,2647.5,0.7611]
[1729270964927,1.58225578,2648.9,2647.6,0.7611]
[1729270965234,1.58225578,2649.0,2647.6,0.7611]
[1729270966402,1.58225578,2649.0,2647.7,0.3768]
[1729270966730,1.97593913,2649.1,2647.8,0.8242]
[1729270966731,1.58225578,2649.1,2647.8,0.8242]
[1729270966900,1.58225578,2649.2,2647.8,0.8242]
[1729270967101,1.94033635,2649.2,2647.8,0.8242]
[1729270967404,1.58225578,2649.2,2647.8,0.8242]
[1729270971116,1.58225578,2649.0,2647.8,0.8242]
[1729270971420,1.58225578,2648.9,2647.8,0.8242]
[1729270971634,1.58225578,2648.8,2647.8,0.8242]
[1729270971848,1.93794893,2648.7,2647.8,0.8242]
[1729270972842,1.58225578,2648.6,2647.8,0.8242]
[1729270973051,1.58225578,2648.4,2647.8,0.8242]
[1729270973534,1.58225578,2648.3,2647.8,0.8242]
[1729270973738,1.58225578,2648.1,2647.8,0.8242]
[1729270973942,1.58225578,2648.0,2647.8,0.8242]
[1729270974447,1.58225578,2648.1,2647.8,0.8242]
[1729270974769,1.9380052,2648.0,2647.8,0.8242]
[1729270975032,1.58225578,2648.1,2647.8,0.8242]
[1729270976633,1.58225578,2648.2,2647.8,0.8242]
[1729270977206,1.58225578,2648.3,2647.8,0.8242]
[1729270977405,0.35574942,2648.2,2647.8,0.8242]
[1729270977809,1.9380052,2648.2,2647.8,0.8242]
[1729270978547,1.58225578,2648.1,2647.8,0.8242]
[1729270980703,1.9380052,2648.2,2647.8,0.8242]
[1729270982455,1.97596436,2648.3,2647.8,0.8242]
[1729270982602,3.6511858,2649.1,2647.8,0.8242]
[1729270982603,1.58225578,2648.5,2647.8,0.8242]
[1729270982803,1.58225578,2648.7,2647.8,0.8242]
[1729270983004,1.97392745,2648.8,2647.8,0.8242]
[1729270983005,1.58225578,2648.8,2647.8,0.8242]
[1729270983204,1.58225578,2648.9,2647.8,0.8242]
[1729270983730,1.58225578,2649.0,2647.8,0.8242]
[1729270983950,1.58225578,2648.9,2647.8,0.8242]
[1729270984247,1.58225578,2649.0,2647.8,0.8242]
[1729270984410,1.58225578,2649.1,2647.8,0.8242]
[1729270984630,1.58225578,2649.1,2647.9,0.7783]
[1729270984830,1.58225578,2649.3,2647.9,0.7783]
[1729270985181,1.58225578,2649.4,2647.9,0.7783]
[1729270986479,1.93780027,2649.4,2647.9,0.7783]
[1729270989466,0.35554449,2649.4,2647.9,0.7783]
[1729270989633,1.58225578,2649.5,2647.9,0.7783]
[1729270989835,1.58225578,2649.4,2647.9,0.7783]
[1729270990574,1.97318914,2649.6,2647.9,0.7783]
[1729270990575,1.58225578,2649.5,2647.9,0.7783]
[1729270992493,1.58225578,2649.6,2647.9,0.7783]
[1729270992777,1.97130571,2649.7,2647.9,0.7783]
[1729270992778,1.58225578,2649.7,2648.1,0.8139]
[1729270993451,1.58225578,2649.6,2648.1,0.8139]
[1729270993652,1.58225578,2649.5,2648.2,0.7734]
[1729270995570,1.58225578,2649.6,2648.2,0.7734]
[1729270995950,1.58225578,2649.5,2648.2,0.7734]
[1729270996149,1.97019094,2649.7,2648.2,0.7734]
[1729270996150,1.58225578,2649.6,2648.2,0.7734]
[1729270996377,0.35524467,2649.5,2648.2,0.7734]
[1729270997379,1.93750045,2649.5,2648.2,0.7734]
[1729270997539,1.58225578,2649.5,2648.2,0.7734]
[1729270997738,1.58225578,2649.4,2648.2,0.7734]
[1729270998679,1.58225578,2649.5,2648.3,0.763]
[1729270998975,1.77927487,2649.4,2648.3,0.763]
[1729271000189,1.58225578,2649.3,2648.3,0.763]
[1729271000478,1.77927487,2649.4,2648.3,0.763]
[1729271000641,0.37494658,2649.3,2648.3,0.763]
[1729271001054,1.95720236,2649.3,2648.3,0.763]
[1729271001257,1.58225578,2649.2,2648.3,0.763]
[1729271001854,1.58225578,2649.0,2648.3,0.763]
[1729271002183,1.58225578,2648.8,2648.3,0.763]
[1729271002481,1.58225578,2648.9,2648.3,0.763]
[1729271003184,0.35524467,2648.9,2648.3,0.763]
[1729271003345,1.97019094,2649.2,2648.3,0.763]
[1729271003346,1.58225578,2649.2,2648.3,0.763]
[1729271003615,1.58225578,2649.3,2648.3,0.763]
[1729271003907,1.58225578,2649.4,2648.3,0.763]
[1729271004454,1.58225578,2649.3,2648.3,0.763]
[1729271005548,1.97695362,2649.3,2648.3,0.763]
[1729271005767,1.58225578,2649.3,2648.3,0.763]
[1729271006048,1.58225578,2649.4,2648.3,0.763]
[1729271008526,1.58225578,2649.3,2648.3,0.763]
[1729271008722,1.58225578,2649.3,2648.0,0.7986]
[1729271008921,1.97695362,2649.3,2648.2,0.7986]
[1729271009126,1.58225578,2649.4,2648.2,0.7986]
[1729271009722,1.58225578,2649.5,2648.2,0.7986]
[1729271011613,1.58225578,2649.4,2648.2,0.7986]
[1729271013517,1.58225578,2649.5,2648.2,0.7986]
[1729271014362,1.58225578,2649.4,2648.2,0.7986]
[1729271014764,1.58225578,2649.5,2648.2,0.7986]
[1729271015464,2.01597531,2649.6,2648.2,0.7986]
[1729271017939,1.58225578,2649.6,2648.2,0.7986]
[1729271018766,1.58225578,2649.6,2648.3,0.7698]
[1729271022342,1.58225578,2649.5,2648.3,0.7698]
[1729271024767,1.58225578,2649.4,2648.3,0.7698]
[1729271026341,1.58225578,2649.6,2648.4,0.779]
[1729271026573,1.58225578,2649.5,2648.4,0.779]
[1729271026873,1.58225578,2649.6,2648.4,0.779]
[1729271027073,1.58225578,2649.5,2648.4,0.779]
[1729271027234,1.58225578,2649.4,2648.4,0.779]
[1729271028440,1.58225578,2649.3,2648.4,0.779]
[1729271029797,1.58225578,2649.4,2648.4,0.779]
[1729271029990,1.97698593,2649.5,2648.4,0.779]
[1729271029991,1.58225578,2649.2,2648.4,0.779]
[1729271030149,1.58225578,2649.0,2648.4,0.779]
[1729271030680,1.58225578,2649.1,2648.4,0.779]
[1729271030991,1.58225578,2649.3,2648.4,0.779]
[1729271031190,1.58225578,2649.4,2648.4,0.779]
[1729271032991,1.58225578,2649.3,2648.4,0.779]
[1729271033354,1.58225578,2649.4,2648.4,0.779]
[1729271034452,1.58225578,2649.3,2648.4,0.779]
[1729271037458,1.58225578,2649.2,2648.4,0.779]
[1729271037666,1.938171,2649.2,2648.4,0.779]
[1729271037869,1.58225578,2649.1,2648.4,0.779]
[1729271038080,1.58225578,2649.0,2648.4,0.779]
[1729271041715,1.58225578,2648.9,2648.4,0.779]
[1729271041893,1.58225578,2649.0,2648.4,0.779]
[1729271043016,1.58225578,2648.9,2648.4,0.779]
[1729271043784,1.93818173,2648.9,2648.4,0.779]
[1729271044185,1.58225578,2648.8,2648.4,0.779]
[1729271045220,1.93818173,2648.9,2648.4,0.779]
[1729271046887,0.35592595,2648.9,2648.4,0.779]
[1729271047229,1.58225578,2649.2,2648.4,0.779]
[1729271047431,1.58225578,2649.3,2648.4,0.7777646]
[1729271047728,1.58225578,2649.5,2648.4,0.7777646]
[1729271048310,1.58225578,2649.5,2648.4,0.3776]
[1729271048511,1.97695235,2649.7,2648.4,0.3776]
[1729271048512,1.58225578,2649.6,2648.4,0.3776]
[1729271048898,1.58225578,2649.7,2648.4,0.3776]
[1729271049088,1.58225578,2649.7,2648.2,0.8021771]
[1729271049089,1.58225578,2649.9,2648.5,0.82016671]
[1729271049289,1.58225578,2649.9,2648.5,1.1797771]
[1729271049524,1.58225578,2650.0,2648.5,1.1797771]
[1729271050527,1.58225578,2650.2,2648.8,0.808]
[1729271050891,1.58225578,2650.3,2648.8,0.808]
[1729271051223,1.58225578,2650.2,2648.8,0.808]
[1729271051392,1.58225578,2650.3,2648.8,0.808]
[1729271052099,1.97595781,2650.4,2649.1,0.808]
[1729271052100,1.58225578,2650.4,2649.1,0.808]
[1729271052316,1.93807714,2650.4,2649.1,0.808]
[1729271052602,0.35582136,2650.4,2649.1,0.808]
[1729271053116,1.58225578,2650.6,2649.1,0.808]
[1729271053531,1.58225578,2650.5,2649.1,0.808]
[1729271053736,1.58225578,2650.6,2649.1,0.808]
[1729271053892,1.97595781,2650.7,2649.1,0.808]
[1729271053893,1.58225578,2650.5,2649.1,0.808]
[1729271054096,1.93807714,2650.5,2649.1,0.808]
[1729271055428,0.35582136,2650.5,2649.1,0.808]
[1729271059121,1.58225578,2650.6,2649.1,0.808]
[1729271059628,1.58225578,2650.7,2649.1,0.808]
[1729271061265,1.58225578,2650.8,2649.2,0.8139]
[1729271061569,1.58225578,2650.9,2649.2,0.8139]
[1729271061716,1.58225578,2650.9,2649.3,0.8139]
[1729271061923,0.35514154,2650.8,2649.3,0.8139]
[1729271062923,1.58225578,2650.9,2649.3,0.8139]
[1729271063655,1.58225578,2651.0,2649.4,0.7559]
[1729271064181,1.96833772,2651.2,2649.4,0.7559]
[1729271064182,1.58225578,2651.1,2649.4,0.7559]
[1729271065271,1.58225578,2651.0,2649.4,0.7559]
[1729271065472,1.58225578,2651.0,2649.3,7.29]
[1729271065473,0.35505935,2650.9,2649.6,0.7573]
[1729271065858,1.58225578,2651.0,2649.6,0.7573]
[1729271067402,1.58225578,2650.9,2649.6,0.7573]
[1729271067556,1.58225578,2650.8,2649.6,0.7573]
[1729271071603,1.58225578,2650.7,2649.6,0.7573]
[1729271079564,1.58225578,2650.6,2649.6,0.7573]
[1729271079782,1.98233816,2650.7,2649.6,0.7573]
[1729271080776,1.58225578,2650.6,2649.6,0.7573]
[1729271080990,5.35505578,2650.6,2649.6,0.7573]
[1729271081138,1.63948655,2650.3,2649.6,0.7573]
[1729271081652,1.63948655,2650.2,2649.6,0.7573]
[1729271081855,3.22174233,2650.3,2649.6,0.7573]
[1729271083394,1.58225578,2650.3,2649.6,0.7573]
[1729271084390,1.58225578,2650.2,2649.6,0.7573]
[1729271084750,1.58225578,2650.3,2649.6,0.7573]
[1729271084956,1.58225578,2650.2,2649.6,0.7573]
[1729271086797,3.22174233,2650.2,2649.6,0.7573]
[1729271086957,1.63948655,2650.1,2649.6,0.7573]
[1729271088389,1.58225578,2650.2,2649.6,0.7573]
[1729271088390,3.22174233,2650.2,2649.6,0.7573]
[1729271088569,3.65194829,2650.1,2649.6,0.7573]
[1729271088753,2.01246174,2650.1,2649.6,0.7573]
[1729271090165,1.58225578,2650.0,2649.6,0.7573]
[1729271091315,1.58225578,2649.9,2649.6,0.7573]
[1729271091497,1.58225578,2649.8,2649.6,0.7573]
[1729271091807,0.35520944,2649.7,2649.6,0.7573]
[1729271091991,1.58225578,2649.8,2649.6,0.7573]
[1729271092174,1.97343616,2649.9,2649.6,0.7573]
[1729271092175,1.58225578,2649.9,2649.6,0.7573]
[1729271092693,1.58225578,2649.8,2649.6,0.7573]
[1729271093424,1.58225578,2649.9,2649.6,0.7573]
[1729271093743,1.58225578,2650.0,2649.6,0.7573]
[1729271093904,1.97343616,2650.2,2649.6,0.7573]
[1729271093905,1.58225578,2650.2,2649.6,0.7573]
[1729271094409,1.58225578,2650.3,2649.6,0.7573]
[1729271097822,1.58225578,2650.4,2649.6,0.7573]
[1729271099237,1.58225578,2650.3,2649.6,0.7573]
[1729271099394,1.58225578,2650.1,2649.6,0.7573]
[1729271100624,1.58225578,2650.2,2649.6,0.7573]
[1729271101322,1.58225578,2650.1,2649.6,0.7573]
[1729271101909,1.58225578,2650.2,2649.6,0.7573]
[1729271102318,1.97354868,2650.2,2649.6,0.7573]
[1729271102520,1.58225578,2650.2,2649.6,0.7573]
[1729271102723,1.58225578,2650.3,2649.6,0.7573]
[1729271103136,1.58225578,2650.5,2649.6,0.7573]
[1729271103607,1.9749562,2650.7,2649.6,0.7573]
[1729271103608,1.58225578,2650.6,2649.6,0.7573]
[1729271104543,1.58225578,2650.7,2649.6,0.7573]
[1729271108797,1.93791574,2650.7,2649.6,0.7573]
[1729271108997,1.58225578,2650.5,2649.6,0.7573]
[1729271109608,1.58225578,2650.4,2649.6,0.7573]
[1729271111598,1.58225578,2650.5,2649.6,0.7573]
[1729271112004,1.58225578,2650.4,2649.6,0.7573]
[1729271112241,1.93788086,2650.4,2649.6,0.7573]
[1729271112933,0.35562508,2650.4,2649.6,0.7573]
[1729271113107,1.93788086,2650.4,2649.6,0.7573]
[1729271113741,0.35562508,2650.4,2649.6,0.7573]
[1729271113903,1.93788086,2650.4,2649.7,0.8255]
[1729271114106,3.75043995,2650.3,2649.7,0.8255]
[1729271114423,1.58225578,2650.0,2649.7,0.8255]
[1729271114734,1.58225578,2649.9,2649.7,0.8255]
[1729271115603,1.58225578,2650.0,2649.7,0.8255]
[1729271115805,1.58225578,2650.1,2649.7,0.8255]
[1729271116007,1.58225578,2650.2,2649.7,0.8255]
[1729271116272,0.35566519,2650.1,2649.7,0.8255]
[1729271116739,1.58225578,2650.2,2649.7,0.8255]
[1729271117257,1.93788086,2650.4,2649.7,0.8255]
[1729271117405,1.58225578,2650.5,2649.8,0.80501642]
[1729271117748,1.58225578,2650.5,2649.8,0.7595]
[1729271119257,1.58225578,2650.4,2649.8,0.7595]
[1729271119420,1.58225578,2650.2,2649.8,0.7595]
[1729271119750,1.93790512,2650.1,2648.9,0.8278]
[1729271119907,1.58225578,2649.8,2648.9,0.8278]
[1729271120449,1.58225578,2649.7,2648.9,0.85780402]
[1729271121621,1.58225578,2649.7,2648.9,0.8278]
[1729271123213,1.58225578,2649.8,2648.9,0.87245843]
[1729271123549,1.58225578,2649.8,2648.9,0.8278]
[1729271123855,1.93789236,2649.8,2648.9,0.8278]
[1729271127360,1.58225578,2649.8,2648.9,0.8278]
[1729271127656,1.58225578,2650.0,2648.9,0.8278]
[1729271128212,1.58225578,2650.0,2649.1,0.8285]
[1729271128557,1.58225578,2650.0,2649.3,0.8285]
[1729271129128,1.58225578,2650.1,2649.3,0.8285]
[1729271129333,0.39352336,2650.6,2649.3,0.8285]
[1729271129334,1.58225578,2650.2,2649.3,0.8285]
[1729271129657,1.97334536,2650.4,2648.8,8.08222091]
[1729271129658,1.58225578,2650.4,2649.5,0.8285]
[1729271129827,1.58225578,2650.6,2649.5,0.8285]
[1729271130227,1.97334536,2650.7,2649.5,0.8285]
[1729271130228,1.58225578,2650.7,2649.5,0.8285]
[1729271130619,1.58225578,2650.8,2649.5,0.8285]
[1729271130820,1.58225578,2650.9,2649.5,0.8285]
[1729271131018,1.58225578,2650.8,2649.5,0.8285]
[1729271132256,0.09138852,2650.7,2649.5,0.8285]
[1729271134064,0.09138852,2650.7,2649.2,7.29]
[1729271134065,0.09138852,2650.7,2649.6,0.8156]
[1729271135545,0.09138852,2650.7,2649.8,0.8156]
[1729271138054,0.09138852,2650.7,2649.8,0.93733562]
[1729271143708,0.09138852,2650.7,2650.0,0.817]
[1729271143879,0.09138852,2650.7,2650.1,0.86167169]
[1729271144714,0.0886238,2650.7,2650.1,0.86167169]
[1729271145020,0.0886238,2650.7,2650.2,0.817]
[1729271145301,0.0886238,2650.7,2650.1,0.53577814]
[1729271145302,0.0886238,2650.7,2649.8,0.817]
[1729271148682,0.0886238,2650.7,2649.9,0.3776]
[1729271148903,0.0886238,2650.7,2650.0,0.8245]
[1729271150008,0.0886238,2650.7,2650.2,0.8245]
[1729271156160,0.0886238,2650.7,2650.3,0.8093]
[1729271156553,0.02261082,2651.4,2650.5,0.8093]
[1729271156738,0.02261082,2651.4,2650.6,0.3776]
[1729271157057,1.58225578,2652.5,2651.0,0.8093]
[1729271157258,0.35493483,2652.5,2651.0,0.8093]
[1729271157420,1.93719061,2652.5,2651.0,0.8093]
[1729271159163,0.35493483,2652.5,2651.0,0.8093]
[1729271160666,0.39348946,2652.7,2651.0,0.8093]
[1729271160839,1.58225578,2652.8,2651.0,0.8093]
[1729271161048,0.42490322,2652.7,2651.0,0.8093]
[1729271161223,1.58225578,2652.8,2651.0,0.93096968]
[1729271161428,1.58225578,2652.7,2651.0,0.93096968]
[1729271161866,1.58225578,2652.8,2651.0,0.93096968]
[1729271162161,0.39428025,2652.7,2651.0,0.93096968]
[1729271162871,1.97653603,2652.7,2651.0,0.93096968]
[1729271163234,0.39428025,2652.7,2651.0,0.93096968]
[1729271165585,0.5746146,2652.6,2651.0,0.93096968]
[1729271165761,0.39428025,2652.7,2651.0,0.93096968]
[1729271166152,0.39428025,2652.7,2651.2,0.7508]
[1729271166353,4.16407025,2652.7,2651.4,0.7508]
[1729271166585,0.39428025,2652.7,2651.4,0.7508]
[1729271166807,0.5746196,2652.6,2651.4,0.7508]
[1729271168686,0.5746196,2652.6,2651.5,0.7508]
[1729271170277,0.39428025,2652.7,2651.5,0.7508]
[1729271171005,1.58225578,2653.1,2651.5,0.7508]
[1729271171157,0.39343913,2653.0,2651.5,0.7508]
[1729271172499,1.97569491,2653.0,2651.5,0.7508]
[1729271172722,0.39343913,2653.0,2651.5,0.7508]
[1729271173083,1.58225578,2653.1,2651.5,0.7508]
[1729271173284,0.35462513,2653.0,2651.5,0.7508]
[1729271174385,1.93688091,2653.0,2651.5,0.7508]
[1729271175188,5.70622091,2653.0,2651.5,0.7508]
[1729271175392,1.58225578,2652.9,2651.5,0.7508]
[1729271175578,1.58225578,2652.8,2651.5,0.7508]
[1729271175777,1.58225578,2652.8,2651.6,0.7805]
[1729271175981,1.58225578,2652.8,2651.8,0.7805]
[1729271177120,1.58225578,2652.9,2651.8,0.7805]
[1729271177422,1.58225578,2652.8,2651.8,0.7805]
[1729271177578,1.58225578,2652.9,2651.8,0.7805]
[1729271177778,0.39008764,2652.8,2651.8,0.7805]
[1729271178218,1.97234342,2652.8,2651.8,0.7805]
[1729271179004,1.58225578,2652.7,2651.8,0.7805]
[1729271179181,1.58225578,2652.6,2651.8,0.7805]
[1729271179584,1.58225578,2652.7,2651.8,0.7805]
[1729271179829,1.97588967,2652.6,2651.8,0.7805]
[1729271180686,0.39363389,2652.6,2651.8,0.7805]
[1729271181129,1.58225578,2652.7,2651.8,0.7805]
[1729271181309,1.58225578,2652.9,2651.8,0.7805]